[Event "Early-Titled-Tuesday-Blitz-January-16-2024"]
[Site "Chess.com"]
[Date "2024.01.16"]
[Round "4"]
[White "tjallkompall"]
[Black "HATilay"]
[Result "0-1"]
[WhiteElo "2749"]
[BlackElo "2578"]
[TimeControl "180+1"]
[EndTime "8:40:49 PST"]
[Termination "HATilay won on time"]

1. c4 {[%clk 0:03:00.9]} 1... e5 {[%clk 0:02:46.8]} 2. g3 {[%clk 0:03:00.7]}
2... c6 {[%clk 0:02:46.8]} 3. Bg2 {[%clk 0:03:00.4]} 3... d5 {[%clk 0:02:45.9]}
4. cxd5 {[%clk 0:03:01.3]} 4... cxd5 {[%clk 0:02:46.1]} 5. d4 {[%clk 0:03:02]}
5... e4 {[%clk 0:02:46.1]} 6. Nc3 {[%clk 0:03:02.6]} 6... Bb4 {[%clk 0:02:44.3]}
7. Nh3 {[%clk 0:03:01.3]} 7... Nf6 {[%clk 0:02:42.5]} 8. Bg5 {[%clk 0:03:00.5]}
8... Nbd7 {[%clk 0:02:41]} 9. O-O {[%clk 0:02:57]} 9... Bxc3 {[%clk 0:02:41.1]}
10. bxc3 {[%clk 0:02:56.7]} 10... h6 {[%clk 0:02:41.8]} 11. Bd2 {[%clk
0:02:51.5]} 11... O-O {[%clk 0:02:39.6]} 12. a4 {[%clk 0:02:36.8]} 12... Nb6
{[%clk 0:02:29.8]} 13. Qb3 {[%clk 0:02:24.7]} 13... Nc4 {[%clk 0:02:17.9]} 14.
Bf4 {[%clk 0:02:24.5]} 14... b6 {[%clk 0:01:32.2]} 15. f3 {[%clk 0:02:17.5]}
15... Bf5 {[%clk 0:01:06.9]} 16. Rfe1 {[%clk 0:01:12.3]} 16... Qd7 {[%clk
0:00:48.4]} 17. Nf2 {[%clk 0:01:11.9]} 17... Rfe8 {[%clk 0:00:45.9]} 18. fxe4
{[%clk 0:00:58.9]} 18... Nxe4 {[%clk 0:00:43.8]} 19. Nd3 {[%clk 0:00:59.5]}
19... Rac8 {[%clk 0:00:33.1]} 20. Rac1 {[%clk 0:00:49.3]} 20... g5 {[%clk
0:00:26.6]} 21. Be5 {[%clk 0:00:19.9]} 21... f6 {[%clk 0:00:26.6]} 22. Bxe4
{[%clk 0:00:20.6]} 22... Bxe4 {[%clk 0:00:26.3]} 23. Bxf6 {[%clk 0:00:19.5]}
23... Qh3 {[%clk 0:00:26.5]} 0-1

[Event "Early-Titled-Tuesday-Blitz-January-16-2024"]
[Site "Chess.com"]
[Date "2024.01.16"]
[Round "4"]
[White "TrompeterImEther"]
[Black "LuisFSiles"]
[Result "1-0"]
[WhiteElo "2480"]
[BlackElo "2243"]
[TimeControl "180+1"]
[EndTime "8:40:49 PST"]
[Termination "TrompeterImEther won by checkmate"]

1. e4 {[%clk 0:02:29]} 1... c5 {[%clk 0:02:58.1]} 2. Nf3 {[%clk 0:02:29.3]} 2...
Nc6 {[%clk 0:02:57.7]} 3. Bb5 {[%clk 0:02:28.5]} 3... g6 {[%clk 0:02:57.1]} 4.
O-O {[%clk 0:02:27.3]} 4... Bg7 {[%clk 0:02:57.2]} 5. Re1 {[%clk 0:02:27.9]}
5... Nf6 {[%clk 0:02:57]} 6. e5 {[%clk 0:02:28]} 6... Nd5 {[%clk 0:02:56.4]} 7.
Nc3 {[%clk 0:02:28.8]} 7... Nc7 {[%clk 0:02:56.4]} 8. Bxc6 {[%clk 0:02:29.5]}
8... dxc6 {[%clk 0:02:57.3]} 9. h3 {[%clk 0:02:27.5]} 9... O-O {[%clk
0:02:56.2]} 10. d3 {[%clk 0:02:28]} 10... Nd5 {[%clk 0:02:41.1]} 11. Ne2 {[%clk
0:02:26.2]} 11... b6 {[%clk 0:02:37.6]} 12. a4 {[%clk 0:02:25.9]} 12... a5
{[%clk 0:02:37.2]} 13. Nf4 {[%clk 0:02:26.2]} 13... Nxf4 {[%clk 0:02:33.8]} 14.
Bxf4 {[%clk 0:02:27.1]} 14... Be6 {[%clk 0:02:21.9]} 15. Qd2 {[%clk 0:02:26.6]}
15... Qd7 {[%clk 0:02:19.2]} 16. Bh6 {[%clk 0:02:22]} 16... Bd5 {[%clk
0:02:11.4]} 17. Nh2 {[%clk 0:02:20.1]} 17... f5 {[%clk 0:02:03.4]} 18. exf6
{[%clk 0:02:11]} 18... exf6 {[%clk 0:02:01.6]} 19. Ng4 {[%clk 0:02:03]} 19...
Rae8 {[%clk 0:01:45.8]} 20. Qf4 {[%clk 0:01:40.8]} 20... g5 {[%clk 0:01:31]} 21.
Qg3 {[%clk 0:01:34]} 21... Bxh6 {[%clk 0:01:28.4]} 22. Nxh6+ {[%clk 0:01:34.9]}
22... Kg7 {[%clk 0:01:28.8]} 23. Ng4 {[%clk 0:01:33.3]} 23... h6 {[%clk
0:01:14.7]} 24. Ne3 {[%clk 0:01:28.4]} 24... Be6 {[%clk 0:01:13.9]} 25. Rad1
{[%clk 0:01:22.1]} 25... f5 {[%clk 0:01:10.8]} 26. f4 {[%clk 0:01:22]} 26... Qd6
{[%clk 0:01:06.7]} 27. Rf1 {[%clk 0:01:19.8]} 27... Kh7 {[%clk 0:01:02.8]} 28.
Qf2 {[%clk 0:01:18.2]} 28... Qd4 {[%clk 0:00:46.5]} 29. c3 {[%clk 0:00:56.7]}
29... Qxf4 {[%clk 0:00:38.3]} 30. Qxf4 {[%clk 0:00:53.1]} 30... gxf4 {[%clk
0:00:31.8]} 31. Rxf4 {[%clk 0:00:54]} 31... Bb3 {[%clk 0:00:19.5]} 32. Re1
{[%clk 0:00:53.3]} 32... Re5 {[%clk 0:00:17.8]} 33. Kf2 {[%clk 0:00:49.4]} 33...
Kg6 {[%clk 0:00:18.2]} 34. g4 {[%clk 0:00:42.4]} 34... Rf6 {[%clk 0:00:18.4]}
35. gxf5+ {[%clk 0:00:42.1]} 35... Kg5 {[%clk 0:00:19]} 36. Rg1+ {[%clk
0:00:40.2]} 36... Kh5 {[%clk 0:00:17.5]} 37. Rgg4 {[%clk 0:00:36.7]} 37... Be6
{[%clk 0:00:15.7]} 38. Rh4+ {[%clk 0:00:36.8]} 38... Kg5 {[%clk 0:00:16]} 39.
Rfg4# {[%clk 0:00:37.7]} 1-0

[Event "Early-Titled-Tuesday-Blitz-January-16-2024"]
[Site "Chess.com"]
[Date "2024.01.16"]
[Round "4"]
[White "Soledadense88"]
[Black "yaguigor"]
[Result "0-1"]
[WhiteElo "2405"]
[BlackElo "2654"]
[TimeControl "180+1"]
[EndTime "8:40:53 PST"]
[Termination "yaguigor won by resignation"]

1. d4 {[%clk 0:03:00.9]} 1... d5 {[%clk 0:02:56.7]} 2. Nc3 {[%clk 0:02:58]} 2...
Nf6 {[%clk 0:02:55.8]} 3. Bf4 {[%clk 0:02:57.4]} 3... a6 {[%clk 0:02:55.5]} 4.
e3 {[%clk 0:02:53.6]} 4... e6 {[%clk 0:02:54.9]} 5. g4 {[%clk 0:02:45.3]} 5...
b5 {[%clk 0:02:52.6]} 6. g5 {[%clk 0:02:40.7]} 6... Ne4 {[%clk 0:02:42.5]} 7.
Nxe4 {[%clk 0:02:34]} 7... dxe4 {[%clk 0:02:43.4]} 8. Bg2 {[%clk 0:02:22.7]}
8... Bb7 {[%clk 0:02:41.9]} 9. Ne2 {[%clk 0:02:22.5]} 9... Nd7 {[%clk
0:02:39.1]} 10. Ng3 {[%clk 0:02:12.7]} 10... f5 {[%clk 0:02:21.3]} 11. gxf6
{[%clk 0:01:48.8]} 11... Nxf6 {[%clk 0:02:19.8]} 12. Be5 {[%clk 0:01:24.3]}
12... Bd6 {[%clk 0:01:50.4]} 13. Bxf6 {[%clk 0:01:01.4]} 13... Qxf6 {[%clk
0:01:51.3]} 14. Nxe4 {[%clk 0:00:59.1]} 14... Bxe4 {[%clk 0:01:49.3]} 15. Bxe4
{[%clk 0:00:59.5]} 15... O-O {[%clk 0:01:50]} 16. f4 {[%clk 0:00:34.4]} 16...
Qh4+ {[%clk 0:01:48.3]} 17. Kd2 {[%clk 0:00:33.2]} 17... Rad8 {[%clk 0:01:42.4]}
18. Qe2 {[%clk 0:00:11.9]} 18... c5 {[%clk 0:01:28.1]} 19. c3 {[%clk 0:00:11.7]}
19... cxd4 {[%clk 0:01:27.1]} 20. cxd4 {[%clk 0:00:11.8]} 20... Bxf4 {[%clk
0:01:19.5]} 21. exf4 {[%clk 0:00:10.8]} 21... Rxd4+ {[%clk 0:01:18.9]} 22. Kc2
{[%clk 0:00:11]} 22... Rxf4 {[%clk 0:01:13.7]} 23. Bf3 {[%clk 0:00:07.6]} 23...
Qf6 {[%clk 0:01:09.6]} 24. Rhf1 {[%clk 0:00:06.1]} 24... Qf5+ {[%clk 0:01:08.3]}
25. Kc1 {[%clk 0:00:05]} 25... Rc4+ {[%clk 0:01:06.6]} 26. Kd1 {[%clk
0:00:05.5]} 26... Rfd4+ {[%clk 0:00:59.8]} 27. Ke1 {[%clk 0:00:06]} 27... Rc5
{[%clk 0:00:39.6]} 28. Qe3 {[%clk 0:00:03.8]} 28... Re5 {[%clk 0:00:39.1]} 29.
Be4 {[%clk 0:00:02]} 29... Rdxe4 {[%clk 0:00:37.4]} 30. Rxf5 {[%clk 0:00:01.9]}
30... Rxe3+ {[%clk 0:00:37.7]} 31. Kf2 {[%clk 0:00:02.5]} 31... exf5 {[%clk
0:00:38.3]} 0-1

[Event "Early-Titled-Tuesday-Blitz-January-16-2024"]
[Site "Chess.com"]
[Date "2024.01.16"]
[Round "4"]
[White "The_Straightforward_Rook"]
[Black "nikitadovbnya2008"]
[Result "1-0"]
[WhiteElo "2468"]
[BlackElo "2178"]
[TimeControl "180+1"]
[EndTime "8:40:53 PST"]
[Termination "The_Straightforward_Rook won by checkmate"]

1. e4 {[%clk 0:03:00.9]} 1... c5 {[%clk 0:03:00.1]} 2. c3 {[%clk 0:03:00.9]}
2... d5 {[%clk 0:03:00]} 3. exd5 {[%clk 0:03:01.8]} 3... Qxd5 {[%clk 0:03:00.9]}
4. Nf3 {[%clk 0:03:01.6]} 4... e6 {[%clk 0:03:01.8]} 5. Na3 {[%clk 0:03:01.3]}
5... Nf6 {[%clk 0:03:02.4]} 6. Bc4 {[%clk 0:02:54.5]} 6... Qd8 {[%clk
0:03:02.1]} 7. d4 {[%clk 0:02:55.2]} 7... Nc6 {[%clk 0:03:02.1]} 8. O-O {[%clk
0:02:53.2]} 8... cxd4 {[%clk 0:03:01.3]} 9. Nb5 {[%clk 0:02:53.5]} 9... a6
{[%clk 0:02:55.8]} 10. Nbxd4 {[%clk 0:02:53.1]} 10... Nxd4 {[%clk 0:02:56.1]}
11. Qxd4 {[%clk 0:02:54]} 11... Qxd4 {[%clk 0:02:55.5]} 12. Nxd4 {[%clk
0:02:54.9]} 12... Bc5 {[%clk 0:02:56.2]} 13. Rd1 {[%clk 0:02:53.6]} 13... Ke7
{[%clk 0:02:55.8]} 14. a4 {[%clk 0:02:49.8]} 14... Rd8 {[%clk 0:02:49.1]} 15.
Be3 {[%clk 0:02:49.4]} 15... Bd6 {[%clk 0:02:43.7]} 16. Re1 {[%clk 0:02:36.2]}
16... Bd7 {[%clk 0:02:43.3]} 17. Bg5 {[%clk 0:02:34.9]} 17... Kf8 {[%clk
0:02:41.4]} 18. Rad1 {[%clk 0:02:25.1]} 18... Be8 {[%clk 0:02:37.7]} 19. a5
{[%clk 0:02:04.2]} 19... Rac8 {[%clk 0:02:35.5]} 20. Bxe6 {[%clk 0:02:03.4]}
20... fxe6 {[%clk 0:02:27]} 21. Nxe6+ {[%clk 0:02:04.3]} 21... Kf7 {[%clk
0:02:26.8]} 22. Nxd8+ {[%clk 0:02:04.5]} 22... Rxd8 {[%clk 0:02:27.7]} 23. Rd2
{[%clk 0:01:57.3]} 23... Bxh2+ {[%clk 0:02:27.8]} 24. Kxh2 {[%clk 0:01:56]}
24... Rxd2 {[%clk 0:02:12.2]} 25. Bxd2 {[%clk 0:01:56.9]} 25... Bc6 {[%clk
0:02:11.3]} 26. f3 {[%clk 0:01:54.8]} 26... Bd5 {[%clk 0:02:08.7]} 27. Bg5
{[%clk 0:01:52.7]} 27... Ng8 {[%clk 0:02:04.2]} 28. Kg3 {[%clk 0:01:49.1]} 28...
h6 {[%clk 0:02:04.4]} 29. Bd8 {[%clk 0:01:49.7]} 29... h5 {[%clk 0:01:59.1]} 30.
Kf4 {[%clk 0:01:47.5]} 30... Nf6 {[%clk 0:01:57.1]} 31. Bxf6 {[%clk 0:01:46.8]}
31... gxf6 {[%clk 0:01:58]} 32. Rd1 {[%clk 0:01:43.3]} 32... Be6 {[%clk
0:01:49.1]} 33. Rd6 {[%clk 0:01:42.6]} 33... Ke7 {[%clk 0:01:48.3]} 34. Rb6
{[%clk 0:01:39.7]} 34... Bc8 {[%clk 0:01:48.3]} 35. b4 {[%clk 0:01:36.8]} 35...
h4 {[%clk 0:01:45.6]} 36. c4 {[%clk 0:01:34.8]} 36... Kf7 {[%clk 0:01:38.4]} 37.
b5 {[%clk 0:01:32.3]} 37... Ke7 {[%clk 0:01:37.5]} 38. bxa6 {[%clk 0:01:28.5]}
38... bxa6 {[%clk 0:01:38.4]} 39. c5 {[%clk 0:01:29.4]} 39... Kf7 {[%clk
0:01:39.1]} 40. Ke4 {[%clk 0:01:25.4]} 40... Ke7 {[%clk 0:01:20.9]} 41. Kd5
{[%clk 0:01:22.5]} 41... Bf5 {[%clk 0:01:10.6]} 42. Rb7+ {[%clk 0:01:20.2]}
42... Kd8 {[%clk 0:01:05.4]} 43. Kd6 {[%clk 0:01:20.3]} 43... Kc8 {[%clk
0:01:05.8]} 44. Rf7 {[%clk 0:01:18.1]} 44... Bd3 {[%clk 0:01:05.9]} 45. Rxf6
{[%clk 0:01:17.7]} 45... Bf1 {[%clk 0:01:04.9]} 46. Rg6 {[%clk 0:01:17.8]} 46...
Bd3 {[%clk 0:01:00.8]} 47. Rg7 {[%clk 0:01:17.6]} 47... h3 {[%clk 0:00:56.9]}
48. c6 {[%clk 0:01:16.3]} 48... Bc4 {[%clk 0:00:45.8]} 49. gxh3 {[%clk 0:01:16]}
49... Kb8 {[%clk 0:00:43.6]} 50. h4 {[%clk 0:01:14]} 50... Bd3 {[%clk
0:00:42.3]} 51. h5 {[%clk 0:01:13.8]} 51... Bc2 {[%clk 0:00:42.3]} 52. h6 {[%clk
0:01:12.4]} 52... Bf5 {[%clk 0:00:42.9]} 53. h7 {[%clk 0:01:11.1]} 53... Bxh7
{[%clk 0:00:34.8]} 54. Rxh7 {[%clk 0:01:12]} 54... Ka8 {[%clk 0:00:35]} 55. f4
{[%clk 0:01:10.3]} 55... Kb8 {[%clk 0:00:34.9]} 56. f5 {[%clk 0:01:11]} 56...
Kc8 {[%clk 0:00:35.2]} 57. Rh8# {[%clk 0:01:09.8]} 1-0

[Event "Early-Titled-Tuesday-Blitz-January-16-2024"]
[Site "Chess.com"]
[Date "2024.01.16"]
[Round "4"]
[White "Zohid6"]
[Black "almaguerjm"]
[Result "1-0"]
[WhiteElo "2819"]
[BlackElo "2494"]
[TimeControl "180+1"]
[EndTime "8:40:55 PST"]
[Termination "Zohid6 won by resignation"]

1. e4 {[%clk 0:03:00.9]} 1... e5 {[%clk 0:02:59.3]} 2. Nf3 {[%clk 0:03:00.5]}
2... Nc6 {[%clk 0:02:57.1]} 3. Bb5 {[%clk 0:02:59.5]} 3... a6 {[%clk 0:02:57]}
4. Ba4 {[%clk 0:02:59.4]} 4... d6 {[%clk 0:02:53.5]} 5. c3 {[%clk 0:02:58.9]}
5... Bd7 {[%clk 0:02:53.1]} 6. O-O {[%clk 0:02:56.7]} 6... Nf6 {[%clk
0:02:52.3]} 7. Re1 {[%clk 0:02:56.1]} 7... g6 {[%clk 0:02:51.6]} 8. d4 {[%clk
0:02:55.9]} 8... Bg7 {[%clk 0:02:51.9]} 9. h3 {[%clk 0:02:54.9]} 9... O-O {[%clk
0:02:48.8]} 10. Bc2 {[%clk 0:02:54.1]} 10... Nh5 {[%clk 0:02:37.6]} 11. a4
{[%clk 0:02:52.3]} 11... Kh8 {[%clk 0:02:20.7]} 12. Be3 {[%clk 0:02:39.7]} 12...
f5 {[%clk 0:02:16.2]} 13. exf5 {[%clk 0:02:37.7]} 13... Bxf5 {[%clk 0:02:16.3]}
14. Bxf5 {[%clk 0:02:32.5]} 14... gxf5 {[%clk 0:02:16.4]} 15. Nxe5 {[%clk
0:02:11.1]} 15... dxe5 {[%clk 0:02:14.8]} 16. Qxh5 {[%clk 0:02:10.4]} 16... f4
{[%clk 0:02:11.8]} 17. Bd2 {[%clk 0:02:01.4]} 17... exd4 {[%clk 0:01:28.5]} 18.
Na3 {[%clk 0:02:01]} 18... f3 {[%clk 0:00:58.8]} 19. g3 {[%clk 0:01:58.1]} 19...
Qd7 {[%clk 0:00:50.5]} 20. Rad1 {[%clk 0:01:38.3]} 20... Rf5 {[%clk 0:00:39.7]}
21. Qg4 {[%clk 0:01:37]} 21... Raf8 {[%clk 0:00:32.3]} 22. Nc2 {[%clk
0:01:28.4]} 22... h5 {[%clk 0:00:20.4]} 23. Qe4 {[%clk 0:01:25.7]} 23... Re5
{[%clk 0:00:20.9]} 24. Qh4 {[%clk 0:01:14.2]} 24... Re2 {[%clk 0:00:16.9]} 25.
Qxh5+ {[%clk 0:01:13.1]} 25... Kg8 {[%clk 0:00:16.9]} 26. cxd4 {[%clk
0:00:34.8]} 26... Ne5 {[%clk 0:00:07.9]} 27. dxe5 {[%clk 0:00:28.6]} 27... Rxd2
{[%clk 0:00:08.3]} 28. e6 {[%clk 0:00:29.3]} 28... Qd5 {[%clk 0:00:07.8]} 29.
Qxd5 {[%clk 0:00:27.9]} 1-0

[Event "Early-Titled-Tuesday-Blitz-January-16-2024"]
[Site "Chess.com"]
[Date "2024.01.16"]
[Round "4"]
[White "Grischuk"]
[Black "djano"]
[Result "1-0"]
[WhiteElo "3081"]
[BlackElo "2630"]
[TimeControl "180+1"]
[EndTime "8:40:56 PST"]
[Termination "Grischuk won on time"]

1. d4 {[%clk 0:03:00.9]} 1... Nf6 {[%clk 0:02:59]} 2. c4 {[%clk 0:03:01.1]} 2...
g6 {[%clk 0:02:58.6]} 3. g3 {[%clk 0:03:01.1]} 3... Bg7 {[%clk 0:02:58.3]} 4.
Bg2 {[%clk 0:03:01.7]} 4... O-O {[%clk 0:02:57.3]} 5. Nc3 {[%clk 0:03:02.3]}
5... d6 {[%clk 0:02:52.1]} 6. Nf3 {[%clk 0:03:02.3]} 6... c5 {[%clk 0:02:42.7]}
7. dxc5 {[%clk 0:02:59.8]} 7... dxc5 {[%clk 0:02:42.6]} 8. Qxd8 {[%clk
0:03:00.7]} 8... Rxd8 {[%clk 0:02:42]} 9. Ne5 {[%clk 0:03:00.9]} 9... Nfd7
{[%clk 0:02:37.6]} 10. Nd3 {[%clk 0:03:00.3]} 10... Nc6 {[%clk 0:02:34.4]} 11.
Bd2 {[%clk 0:02:34.2]} 11... Nde5 {[%clk 0:02:14.2]} 12. Nxe5 {[%clk 0:02:33.2]}
12... Nxe5 {[%clk 0:02:05.3]} 13. b3 {[%clk 0:02:33]} 13... Nc6 {[%clk
0:01:54.3]} 14. O-O-O {[%clk 0:02:25.3]} 14... Bf5 {[%clk 0:01:45.6]} 15. Bxc6
{[%clk 0:02:23]} 15... bxc6 {[%clk 0:01:42.6]} 16. Na4 {[%clk 0:02:22.2]} 16...
e5 {[%clk 0:01:16.4]} 17. Be3 {[%clk 0:02:05.5]} 17... a5 {[%clk 0:00:39.8]} 18.
Bxc5 {[%clk 0:01:56.7]} 18... Bh6+ {[%clk 0:00:36.8]} 19. Be3 {[%clk 0:01:45.6]}
19... Bf8 {[%clk 0:00:35.7]} 20. Kb2 {[%clk 0:01:44.8]} 20... f6 {[%clk
0:00:28.3]} 21. Bc5 {[%clk 0:01:39.3]} 21... Bh6 {[%clk 0:00:24.2]} 22. Kc3
{[%clk 0:01:38.7]} 22... Kf7 {[%clk 0:00:17.3]} 23. Bb6 {[%clk 0:01:36.4]} 23...
Rdb8 {[%clk 0:00:10.6]} 24. f3 {[%clk 0:01:31.8]} 24... Be6 {[%clk 0:00:05.5]}
25. Rd3 {[%clk 0:01:18.4]} 25... Ra6 {[%clk 0:00:05.3]} 26. Be3 {[%clk
0:01:15.7]} 26... Bf8 {[%clk 0:00:04.8]} 27. Bc5 {[%clk 0:01:15.4]} 27... Bh6
{[%clk 0:00:04.1]} 28. Rhd1 {[%clk 0:01:14.7]} 28... f5 {[%clk 0:00:04.3]} 29.
Bd6 {[%clk 0:01:07.8]} 29... Rc8 {[%clk 0:00:03.8]} 30. Bxe5 {[%clk 0:01:07.9]}
30... Bf8 {[%clk 0:00:03.7]} 31. f4 {[%clk 0:01:03.9]} 31... Re8 {[%clk
0:00:03.4]} 32. Rd8 {[%clk 0:01:00.8]} 32... Bb4+ {[%clk 0:00:02.8]} 33. Kc2
{[%clk 0:01:00.6]} 33... Ra8 {[%clk 0:00:03.3]} 34. Rxa8 {[%clk 0:00:59.6]}
34... Rxa8 {[%clk 0:00:03.1]} 35. Bd6 {[%clk 0:01:00.2]} 35... Bxd6 {[%clk
0:00:00.7]} 36. Rxd6 {[%clk 0:01:01.1]} 36... Rc8 {[%clk 0:00:00.8]} 37. Nc5
{[%clk 0:00:59.7]} 1-0

[Event "Early-Titled-Tuesday-Blitz-January-16-2024"]
[Site "Chess.com"]
[Date "2024.01.16"]
[Round "4"]
[White "DonJuanEGenaro"]
[Black "Zapateado"]
[Result "0-1"]
[WhiteElo "1867"]
[BlackElo "2362"]
[TimeControl "180+1"]
[EndTime "8:40:56 PST"]
[Termination "Zapateado won by resignation"]

1. d4 {[%clk 0:03:00.8]} 1... d5 {[%clk 0:02:32.8]} 2. Nf3 {[%clk 0:02:58]} 2...
Nf6 {[%clk 0:02:31.3]} 3. c4 {[%clk 0:02:55.2]} 3... c6 {[%clk 0:02:31.4]} 4.
cxd5 {[%clk 0:02:53.7]} 4... cxd5 {[%clk 0:02:32.3]} 5. Nc3 {[%clk 0:02:53.5]}
5... a6 {[%clk 0:02:31.3]} 6. a3 {[%clk 0:02:52.3]} 6... Nc6 {[%clk 0:02:31.6]}
7. Bf4 {[%clk 0:02:51.1]} 7... Bg4 {[%clk 0:02:31.4]} 8. Ne5 {[%clk 0:02:50]}
8... e6 {[%clk 0:02:29.4]} 9. Nxg4 {[%clk 0:02:48.4]} 9... Nxg4 {[%clk
0:02:30.3]} 10. e4 {[%clk 0:02:36.3]} 10... Nf6 {[%clk 0:02:12.5]} 11. exd5
{[%clk 0:02:35.9]} 11... Nxd5 {[%clk 0:02:10.9]} 12. Bg3 {[%clk 0:02:34.5]}
12... Be7 {[%clk 0:02:08]} 13. Bd3 {[%clk 0:02:33.7]} 13... Bf6 {[%clk
0:02:00.2]} 14. Ne4 {[%clk 0:02:21.3]} 14... Bxd4 {[%clk 0:00:56.1]} 15. Nd6+
{[%clk 0:02:11.4]} 15... Kf8 {[%clk 0:00:49.9]} 16. O-O {[%clk 0:01:52.1]} 16...
Be5 {[%clk 0:00:43.8]} 17. Nxb7 {[%clk 0:01:21.4]} 17... Qb6 {[%clk 0:00:33.3]}
18. Nd6 {[%clk 0:01:09.4]} 18... Bxb2 {[%clk 0:00:21.7]} 19. Rb1 {[%clk
0:01:06]} 19... Nc3 {[%clk 0:00:20.6]} 20. Qc2 {[%clk 0:00:58.8]} 20... Nxb1
{[%clk 0:00:20.4]} 21. Rxb1 {[%clk 0:00:57.7]} 21... Rb8 {[%clk 0:00:18.7]} 22.
Nc4 {[%clk 0:00:46.4]} 22... Qb3 {[%clk 0:00:16.9]} 23. Nd6 {[%clk 0:00:45.8]}
23... Qxc2 {[%clk 0:00:13.9]} 24. Nxf7 {[%clk 0:00:46.6]} 24... Qxb1+ {[%clk
0:00:12.6]} 25. Bxb1 {[%clk 0:00:46.3]} 25... Kxf7 {[%clk 0:00:13]} 26. Bxb8
{[%clk 0:00:42.8]} 26... Rxb8 {[%clk 0:00:13.9]} 27. Be4 {[%clk 0:00:41.4]}
27... Be5 {[%clk 0:00:12.5]} 28. g3 {[%clk 0:00:38.7]} 28... Nd4 {[%clk
0:00:12.3]} 29. Kg2 {[%clk 0:00:35]} 29... Bd6 {[%clk 0:00:12.6]} 30. a4 {[%clk
0:00:32.1]} 30... Rb4 {[%clk 0:00:13]} 0-1

[Event "Early-Titled-Tuesday-Blitz-January-16-2024"]
[Site "Chess.com"]
[Date "2024.01.16"]
[Round "4"]
[White "ScofieldMichael01"]
[Black "EvgenyBurmakin"]
[Result "1-0"]
[WhiteElo "2595"]
[BlackElo "2386"]
[TimeControl "180+1"]
[EndTime "8:40:59 PST"]
[Termination "ScofieldMichael01 won on time"]

1. Nf3 {[%clk 0:03:00.9]} 1... Nf6 {[%clk 0:02:58.4]} 2. g3 {[%clk 0:02:59.7]}
2... g6 {[%clk 0:02:58.5]} 3. b3 {[%clk 0:03:00.6]} 3... Bg7 {[%clk 0:02:58.5]}
4. Bb2 {[%clk 0:03:01.5]} 4... O-O {[%clk 0:02:58.9]} 5. Bg2 {[%clk 0:03:00.4]}
5... d6 {[%clk 0:02:59.2]} 6. d4 {[%clk 0:02:59.9]} 6... Ne4 {[%clk 0:02:48.6]}
7. O-O {[%clk 0:02:57.4]} 7... c5 {[%clk 0:02:48.2]} 8. Nbd2 {[%clk 0:02:55.8]}
8... Nxd2 {[%clk 0:02:39]} 9. Qxd2 {[%clk 0:02:56.7]} 9... Nc6 {[%clk
0:02:34.6]} 10. c4 {[%clk 0:02:55]} 10... Qa5 {[%clk 0:02:08.2]} 11. Bc3 {[%clk
0:02:53]} 11... Qc7 {[%clk 0:01:55.8]} 12. d5 {[%clk 0:02:51.8]} 12... Bxc3
{[%clk 0:01:45.9]} 13. Qxc3 {[%clk 0:02:52.7]} 13... Ne5 {[%clk 0:01:45.5]} 14.
Nxe5 {[%clk 0:02:52.5]} 14... dxe5 {[%clk 0:01:46.4]} 15. e4 {[%clk 0:02:51]}
15... g5 {[%clk 0:01:13.1]} 16. f4 {[%clk 0:02:23.4]} 16... gxf4 {[%clk
0:01:05.1]} 17. gxf4 {[%clk 0:02:24.3]} 17... exf4 {[%clk 0:01:05]} 18. e5
{[%clk 0:02:24.4]} 18... Bf5 {[%clk 0:00:58.6]} 19. Rxf4 {[%clk 0:02:23.8]}
19... Bg6 {[%clk 0:00:58.5]} 20. Raf1 {[%clk 0:02:22.6]} 20... Rad8 {[%clk
0:00:48.8]} 21. h4 {[%clk 0:02:21.6]} 21... Qd7 {[%clk 0:00:42]} 22. Bh3 {[%clk
0:01:40.2]} 22... Qc7 {[%clk 0:00:19.2]} 23. e6 {[%clk 0:01:38.1]} 23... f6
{[%clk 0:00:17.2]} 24. Qf3 {[%clk 0:01:33.8]} 24... Qe5 {[%clk 0:00:15.9]} 25.
Bf5 {[%clk 0:01:28.8]} 25... Kg7 {[%clk 0:00:14.5]} 26. h5 {[%clk 0:01:27.7]}
26... Be8 {[%clk 0:00:12]} 27. Re4 {[%clk 0:01:25.3]} 27... Qb2 {[%clk
0:00:11.2]} 28. Rf2 {[%clk 0:01:25]} 28... Qc1+ {[%clk 0:00:10.4]} 29. Kh2
{[%clk 0:01:23.5]} 29... Kh8 {[%clk 0:00:10]} 30. Rg2 {[%clk 0:01:06.6]} 30...
Qh6 {[%clk 0:00:09.4]} 31. Rh4 {[%clk 0:01:00.8]} 31... b5 {[%clk 0:00:09.2]}
32. Qf4 {[%clk 0:00:56.9]} 32... Qxf4+ {[%clk 0:00:08.5]} 33. Rxf4 {[%clk
0:00:57.8]} 33... bxc4 {[%clk 0:00:09]} 34. bxc4 {[%clk 0:00:58.6]} 34... Bxh5
{[%clk 0:00:08.8]} 35. Rh4 {[%clk 0:00:58.4]} 35... Rg8 {[%clk 0:00:04.2]} 36.
Rxh5 {[%clk 0:00:57.6]} 36... Rxg2+ {[%clk 0:00:04.2]} 37. Kxg2 {[%clk
0:00:58.5]} 37... Re8 {[%clk 0:00:02.9]} 38. Kf3 {[%clk 0:00:57.8]} 38... Kg8
{[%clk 0:00:02.2]} 39. Ke4 {[%clk 0:00:58]} 39... Rb8 {[%clk 0:00:02.1]} 40.
Rxh7 {[%clk 0:00:57.3]} 40... Re8 {[%clk 0:00:01.1]} 41. Rh2 {[%clk 0:00:56]}
41... Kg7 {[%clk 0:00:01.3]} 42. Rg2+ {[%clk 0:00:56.1]} 1-0